bitfinex-derivatives/quotes_SOLF0:USTF0_20250706
["timestamp","ask_amount","ask_price","bid_price","bid_amount"]
[1751811622489,6.6055,151.36,151.32,7.33480824]
[1751811622689,51.149,151.42,151.32,7.33480824]
[1751811622891,7.89985272,151.41,151.32,7.33480824]
[1751811623091,6.6043,151.39,151.32,13.94160824]
[1751811623293,51.149,151.42,151.32,13.94160824]
[1751811623591,7.90106116,151.41,151.32,13.94160824]
[1751811623791,7.90106116,151.4,151.32,13.94160824]
[1751811624096,6.6039,151.39,151.32,13.94160824]
[1751811624389,51.149,151.42,151.32,13.94160824]
[1751811624592,6.6046,151.38,151.32,13.94160824]
[1751811626499,6.6048,151.37,151.32,60.46160824]
[1751811628102,6.6052,151.36,151.32,60.46160824]
[1751811629497,6.6058,151.35,151.32,53.85480824]
[1751811631501,6.6058,151.35,151.32,46.52]
[1751811631697,6.6062,151.34,151.32,46.52]
[1751811631904,7.97200153,151.4,151.32,46.52]
[1751811632103,6.606,151.35,151.32,46.52]
[1751811636406,6.6061,151.34,151.32,46.52]
[1751811637211,6.6065,151.33,151.32,46.52]
[1751811637413,13.4304779,151.39,151.28,46.5]
[1751811637599,67.92923255,151.38,151.28,46.5]
[1751811637799,6.6076,151.31,151.28,46.5]
[1751811638104,12.26432848,151.36,151.28,46.5]
[1751811638299,12.25525521,151.35,151.28,46.5]
[1751811638503,7.99043674,151.34,151.28,46.5]
[1751811638706,4.4664,151.36,151.28,46.5]
[1751811638907,12.26030258,151.35,151.28,46.5]
[1751811639105,12.26312338,151.34,151.28,46.5]
[1751811639309,7.99548411,151.33,151.28,46.5]
[1751811639509,4.4664,151.36,151.28,46.5]
[1751811639809,12.26920237,151.35,151.28,46.5]
[1751811640011,6.6076,151.31,151.28,46.5]
[1751811640607,6.6078,151.3,151.28,46.5]
[1751811647916,47.26,151.33,151.23,4.58051005]
[1751811648113,4.21418787,151.32,151.23,4.58051005]
[1751811648314,6.609,151.28,151.24,6.6104]
[1751811650018,4.21289024,151.32,151.21,12.23845386]
[1751811650220,47.26,151.33,151.23,4.58051005]
[1751811650418,4.21236014,151.32,151.23,4.58051005]
[1751811650619,6.6094,151.27,151.23,11.19111005]
[1751811650920,6.6094,151.27,151.23,73.19111005]
[1751811651316,6.6096,151.26,151.23,73.19111005]
[1751811653310,6.6093,151.27,151.24,6.6104]
[1751811657616,2.0,151.3,151.26,4.58051005]
[1751811657819,0.84810169,151.3,151.29,4.58051005]
[1751811658019,4.29578646,151.35,151.29,4.58051005]
[1751811658317,4.29510247,151.39,151.32,4.58051005]
[1751811658519,47.26,151.4,151.32,4.58051005]
[1751811658718,4.29429502,151.39,151.33,6.6065]
[1751811658921,47.26,151.4,151.33,6.6065]
[1751811659116,4.29429502,151.39,151.33,6.6065]
[1751811659422,47.26,151.4,151.33,6.6065]
[1751811659924,6.6052,151.36,151.33,6.6065]
[1751811660923,6.6058,151.35,151.32,11.18741005]
[1751811661225,47.26,151.4,151.32,4.58051005]
[1751811661522,47.26,151.4,151.33,6.6064]
[1751811661715,2.315,151.41,151.32,4.58051005]
[1751811661918,2.315,151.41,151.33,2.1609]
[1751811662117,6.6049,151.37,151.33,8.7673]
[1751811663422,6.6055,151.36,151.33,2.1609]
[1751811664226,6.6055,151.36,151.32,11.18731005]
[1751811665016,6.6055,151.36,151.32,4.58051005]
[1751811665622,6.6055,151.36,151.32,11.18741005]
[1751811667726,6.6057,151.35,151.32,11.18741005]
[1751811667927,6.6057,151.35,151.32,4.58051005]
[1751811668124,4.41386795,151.4,151.31,4.58051005]
[1751811668330,6.6062,151.34,151.31,247.24051005]
[1751811668822,2.315,151.41,151.31,247.24051005]
[1751811669029,6.6058,151.35,151.31,247.24051005]
[1751811670527,6.6058,151.35,151.31,253.84781005]
[1751811670926,6.6061,151.34,151.31,253.84781005]
[1751811671721,46.92,151.39,151.27,16.91225386]
[1751811671926,4.42748581,151.38,151.28,242.3]
[1751811672223,4.42748581,151.37,151.28,242.3]
[1751811672423,2.3873,151.38,151.28,46.92]
[1751811672424,4.42748581,151.36,151.28,46.92]
[1751811672628,2.3873,151.38,151.28,46.92]
[1751811672829,4.4041731,151.37,151.28,46.92]
[1751811673024,6.6072,151.32,151.28,46.92]
[1751811675430,6.6072,151.32,151.28,53.5285]
[1751811676728,6.6074,151.31,151.28,46.92]
[1751811679535,6.6074,151.31,151.28,53.5287]
[1751811679736,4.35698426,151.37,151.25,46.92]
[1751811679925,2.3873,151.38,151.23,12.23845386]
[1751811679926,55.8582577,151.36,151.23,12.23845386]
[1751811680135,6.6095,151.27,151.23,197.6]
[1751811680431,4.35774765,151.34,151.23,6.6108]
[1751811680632,4.35774765,151.33,151.23,6.6108]
[1751811680831,4.35774765,151.32,151.22,772.92051005]
[1751811681029,2.3224,151.35,151.23,198.0]
[1751811681230,4.3581702,151.34,151.23,198.0]
[1751811681525,4.3581702,151.33,151.23,198.0]
[1751811681729,6.6094,151.27,151.23,198.0]
[1751811682236,6.6094,151.27,151.22,581.81151005]
[1751811682436,6.6094,151.27,151.23,197.96]
[1751811684527,6.6094,151.27,151.23,204.5708]
[1751811685433,2.2303,151.32,151.24,6.6104]
[1751811685731,2.3224,151.35,151.25,4.58051005]
[1751811685932,4.30627513,151.34,151.25,51.52051005]
[1751811686136,2.3224,151.35,151.25,51.52051005]
[1751811686137,4.30627513,151.33,151.25,51.52051005]
[1751811686336,2.3224,151.35,151.25,51.52051005]
[1751811686536,4.30603471,151.34,151.25,51.52051005]
[1751811686738,4.30603471,151.33,151.25,51.52051005]
[1751811686933,4.30603471,151.32,151.25,51.52051005]
[1751811687140,2.3224,151.35,151.25,51.52051005]
[1751811687439,8.53343287,151.34,151.25,51.52051005]
[1751811687640,6.6079,151.3,151.25,51.52051005]
[1751811688040,6.6084,151.29,151.25,58.13041005]
[1751811694543,6.6084,151.29,151.26,6.6095]
[1751811696045,6.6079,151.3,151.27,6.6091]
[1751811697252,6.6077,151.31,151.28,6.6087]
[1751811697935,2.3224,151.35,151.25,53.91261005]
[1751811698136,4.15136425,151.34,151.26,196.92]
[1751811698341,2.3224,151.35,151.26,196.92]
[1751811698547,8.61647832,151.34,151.25,51.52051005]
[1751811698748,8.61647832,151.33,151.25,51.52051005]
[1751811698943,8.61647832,151.32,151.25,46.94]
[1751811699149,10.78927832,151.31,151.22,622.14051005]
[1751811699448,4.14117231,151.3,151.22,819.38051005]
[1751811699745,6.6098,151.26,151.22,819.38051005]
[1751811699945,6.6098,151.26,151.22,622.14051005]
[1751811700143,2.3043,151.3,151.22,46.94]
[1751811700346,6.39424176,151.29,151.22,46.94]
[1751811700543,2.2515,151.29,151.22,46.94]
[1751811700841,2.2515,151.29,151.18,250.3688733]
[1751811701042,2.2515,151.29,151.18,249.22051005]
[1751811701445,2.2515,151.29,151.19,6.6126]
[1751811701946,6.6108,151.24,151.19,6.6126]
[1751811702648,2.2515,151.29,151.18,249.12051005]
[1751811702847,2.2515,151.29,151.21,4.58051005]
[1751811702848,4.14182675,151.28,151.21,4.58051005]
[1751811703037,2.3043,151.3,151.24,4.58051005]
[1751811703237,10.7493578,151.29,151.24,11.19081005]
[1751811703443,2.3043,151.3,151.24,11.19081005]
[1751811703743,8.60123677,151.29,151.23,47.72]
[1751811703943,4.14042015,151.28,151.23,47.72]
[1751811704144,2.3043,151.3,151.23,47.72]
[1751811704350,6.6095,151.27,151.23,47.72]
[1751811704552,2.3043,151.3,151.23,47.72]
[1751811704742,8.60084971,151.29,151.23,47.72]
[1751811704942,4.13987532,151.28,151.23,47.72]
[1751811705145,2.3043,151.3,151.23,47.72]
[1751811705346,8.16493772,151.29,151.23,47.72]
[1751811705549,2.3043,151.3,151.23,47.72]
[1751811705852,8.16517464,151.29,151.23,47.72]
[1751811706046,2.3043,151.3,151.23,47.72]
[1751811706246,8.16517625,151.29,151.23,47.72]
[1751811706442,2.3043,151.3,151.23,47.72]
[1751811706644,8.16505089,151.29,151.23,47.72]
[1751811706948,2.3043,151.3,151.23,47.72]
[1751811707248,6.61,151.26,151.23,47.72]
[1751811708152,6.61,151.25,151.23,47.72]
[1751811710949,6.6104,151.24,151.23,47.72]
[1751811711641,6.6101,151.25,151.23,47.72]
[1751811713251,6.6096,151.26,151.23,47.72]
[1751811713650,2.3043,151.3,151.23,47.72]
[1751811713850,16.70856762,151.29,151.23,47.72]
[1751811714046,8.18479916,151.28,151.23,47.72]
[1751811714247,2.3043,151.3,151.23,47.72]
[1751811714447,16.71323841,151.29,151.23,47.72]
[1751811714749,6.61,151.25,151.23,47.72]
[1751811714947,2.3043,151.3,151.23,47.72]
[1751811715148,16.7132036,151.29,151.23,47.72]
[1751811715348,6.6101,151.25,151.23,47.72]
[1751811718144,6.6105,151.24,151.21,201.38051005]
[1751811719148,6.6105,151.24,151.21,4.58051005]
[1751811719452,6.6105,151.24,151.21,11.19221005]
[1751811719652,6.6105,151.24,151.21,207.93221005]
[1751811721254,6.6101,151.25,151.22,6.6113]
[1751811721657,6.6101,151.25,151.21,201.32051005]
[1751811722155,6.6101,151.25,151.21,207.93211005]
[1751811722752,6.6105,151.24,151.21,207.93211005]
[1751811725057,6.6105,151.24,151.21,201.32051005]
[1751811725752,6.6105,151.24,151.21,207.93201005]
[1751811725957,6.6101,151.25,151.21,207.93201005]
[1751811728769,6.6105,151.24,151.21,203.3515]
[1751811729063,12.27054284,151.35,151.2,52.30689144]
[1751811729259,4.05555845,151.34,151.33,4.58689144]
[1751811729458,4.6585,151.45,151.33,250.58689144]
[1751811729764,4.6585,151.45,151.36,4.58689144]
[1751811729965,6.6022,151.43,151.37,6.6044]
[1751811730158,6.6022,151.43,151.38,198.38]
[1751811730364,4.6585,151.45,151.38,198.38]
[1751811730561,11.2602,151.45,151.38,204.9843]
[1751811730768,4.6585,151.45,151.38,204.9843]
[1751811731172,6.6018,151.44,151.38,204.9843]
[1751811731867,6.6018,151.44,151.39,6.6038]
[1751811732267,11.2601,151.45,151.39,4.58689144]
[1751811732473,11.2601,151.45,151.39,11.19069144]
[1751811732868,6.6018,151.44,151.39,11.19069144]
[1751811734767,4.6585,151.45,151.38,202.95613252]
[1751811736172,6.6022,151.43,151.38,202.95613252]
[1751811736370,4.6585,151.45,151.34,52.49613252]
[1751811736569,6.6038,151.4,151.34,59.10203252]
[1751811736778,6.6038,151.4,151.34,52.49613252]
[1751811737372,4.6585,151.45,151.34,59.10203252]
[1751811737373,6.604,151.39,151.34,59.10203252]
[1751811739377,6.6035,151.4,151.38,0.5]
[1751811739770,6.6039,151.39,151.38,0.5]
[1751811745185,6.6035,151.4,151.38,0.5]
[1751811745385,47.9,151.43,151.34,52.49613252]
[1751811745787,6.6047,151.38,151.34,52.49613252]
[1751811745987,47.9,151.43,151.34,47.92]
[1751811746588,4.42318316,151.42,151.3,623.35613252]
[1751811746787,2.2881,151.41,151.3,623.35613252]
[1751811746984,6.6064,151.34,151.3,623.35613252]
[1751811747182,6.71128316,151.41,151.3,623.35613252]
[1751811747383,4.42318316,151.4,151.3,52.47613252]
[1751811748190,2.2881,151.41,151.3,52.47613252]
[1751811748588,6.6065,151.34,151.3,52.47613252]
[1751811749488,6.6065,151.33,151.3,52.47613252]
[1751811750691,2.2881,151.41,151.3,52.47613252]
[1751811751580,6.6064,151.34,151.3,52.47613252]
[1751811753396,6.6065,151.33,151.3,52.47613252]
[1751811755292,6.6064,151.34,151.3,59.08393252]
[1751811755589,2.2881,151.41,151.3,52.47613252]
[1751811756587,6.6064,151.34,151.3,59.08383252]
[1751811757390,6.6064,151.34,151.3,52.47613252]
[1751811758082,6.6067,151.33,151.3,52.47613252]
[1751811765990,6.6069,151.32,151.3,52.47613252]
[1751811766998,6.6067,151.33,151.3,52.47613252]
[1751811768799,6.607,151.32,151.3,52.47613252]
[1751811773404,6.607,151.32,151.3,4.57613252]
[1751811773998,4.38545592,151.37,151.27,52.03613252]
[1751811774202,4.38839024,151.36,151.27,52.03613252]
[1751811774396,51.9861,151.38,151.27,52.03613252]
[1751811774603,4.38861604,151.37,151.27,52.03613252]
[1751811774805,4.38861604,151.36,151.27,52.03613252]
[1751811775003,4.38881073,151.35,151.27,52.03613252]
[1751811775203,51.9861,151.38,151.27,52.03613252]
[1751811775501,6.6076,151.31,151.28,6.6086]
[1751811776298,4.39009305,151.37,151.27,52.03613252]
[1751811776504,4.39009305,151.36,151.3,4.57613252]
[1751811776698,51.9861,151.38,151.3,4.57613252]
[1751811776895,6.6066,151.33,151.3,4.57613252]
[1751811777098,51.9861,151.38,151.3,4.57613252]
[1751811777299,6.6064,151.34,151.3,11.18363252]
[1751811778207,6.6066,151.33,151.3,11.18363252]
[1751811780300,51.9861,151.38,151.29,13.72010918]
[1751811780507,4.3715266,151.37,151.29,4.57613252]
[1751811780706,6.6075,151.31,151.29,4.57613252]
[1751811781413,4.37152914,151.36,151.29,11.18403252]
[1751811781606,51.9861,151.38,151.29,11.18403252]
[1751811781804,4.37375461,151.37,151.29,11.18403252]
[1751811782009,6.6073,151.32,151.29,11.18403252]
[1751811782413,6.6073,151.32,151.29,4.57613252]
[1751811782615,51.9861,151.38,151.28,15.75247666]
[1751811782918,4.3743329,151.37,151.28,6.6085]
[1751811783113,6.6076,151.31,151.28,15.75247666]
[1751811783715,6.6076,151.31,151.28,6.6085]
[1751811784323,6.6076,151.31,151.28,15.75247666]
[1751811787217,6.6076,151.31,151.28,20.32860918]
[1751811788018,6.6078,151.3,151.28,13.72010918]
[1751811789818,6.608,151.3,151.28,13.72010918]
[1751811791018,6.6077,151.31,151.28,20.32880918]
[1751811791318,61.2524209,151.38,151.29,9.14397666]
[1751811791517,6.6076,151.31,151.29,9.14397666]
[1751811795619,6.6068,151.33,151.29,15.75187666]
[1751811795819,51.9861,151.38,151.3,9.14397666]
[1751811796022,4.39892078,151.37,151.3,9.14397666]
[1751811796219,4.39892078,151.36,151.3,9.14397666]
[1751811796521,4.39892078,151.35,151.29,9.14397666]
[1751811796714,4.39892078,151.34,151.29,9.14397666]
[1751811796917,6.6077,151.31,151.29,9.14397666]
[1751811802119,6.6071,151.32,151.29,15.75207666]
[1751811808931,6.6067,151.33,151.31,2.9323234]
[1751811809127,61.2524209,151.38,151.31,2.9323234]
[1751811809328,6.6068,151.33,151.31,2.9323234]
[1751811814438,6.6069,151.32,151.31,2.9323234]
[1751811815135,11.0192243,151.32,151.31,2.9323234]
[1751811815336,4.4123243,151.32,151.31,2.9323234]
[1751811816839,11.0192243,151.32,151.31,2.9323234]
[1751811817340,4.4123243,151.32,151.31,2.9323234]
[1751811817743,4.4123243,151.32,151.31,2.93229763]
[1751811818441,11.0192243,151.32,151.31,2.93229763]
[1751811818639,6.6069,151.32,151.31,2.93229763]
[1751811825045,6.6067,151.33,151.31,2.93229763]
[1751811825253,51.9861,151.38,151.31,2.93229763]
[1751811825547,4.40235371,151.37,151.33,2.93229763]
[1751811825739,4.40235371,151.36,151.33,2.93229763]
[1751811825947,4.40235371,151.35,151.34,2.93153377]
[1751811826441,51.9861,151.38,151.34,2.93153377]
[1751811826647,4.40228238,151.37,151.34,2.93153377]
[1751811826848,4.40228238,151.36,151.34,2.93153377]
[1751811827045,4.40228238,151.35,151.34,2.93153377]
[1751811827238,4.38956471,151.35,151.34,2.93153377]
[1751811827652,10.99516471,151.35,151.34,2.93153377]
[1751811830958,10.98956471,151.35,151.24,9.2241776]
[1751811831250,12.20974538,151.33,151.23,2.93317529]
[1751811831453,8.90216471,151.32,151.23,2.93317529]
[1751811831653,51.24956471,151.31,151.25,2.93317529]
[1751811831846,4.38956471,151.3,151.25,2.93317529]
[1751811832156,4.38956471,151.29,151.25,2.93317529]
[1751811832345,4.38956471,151.28,151.25,2.93317529]
[1751811832546,2.93317529,151.27,151.19,1.14995704]
[1751811832747,2.93317529,151.27,151.19,2.93317529]
[1751811832748,8.92382563,151.26,151.19,2.93317529]
[1751811832948,4.41122563,151.25,151.19,2.93317529]
[1751811833253,6.6121,151.21,151.19,2.93317529]
[1751811835656,46.86,151.25,151.19,2.9368599]
[1751811836450,6.6113,151.22,151.19,2.9368599]
[1751811836651,46.86,151.25,151.19,2.9368599]
[1751811836955,46.86,151.25,151.16,5.73930979]
[1751811837150,6.6116,151.22,151.18,6.613]
[1751811839459,6.6119,151.21,151.18,6.613]
[1751811839655,51.3926,151.26,151.15,108.86]
[1751811840052,51.3926,151.26,151.15,115.4742]
[1751811840457,51.3926,151.26,151.15,108.86]
[1751811840654,6.6124,151.2,151.16,6.6139]
[1751811841761,6.6124,151.2,151.15,108.86]
[1751811841762,51.3926,151.26,151.15,115.4743]
[1751811842161,51.3926,151.26,151.15,108.86]
[1751811842861,6.6124,151.2,151.16,6.6139]
[1751811844372,6.6126,151.19,151.15,53.4743]
[1751811844570,46.88,151.25,151.14,1.15085074]
[1751811844766,46.88,151.25,151.12,4.58885854]
[1751811844965,4.58885854,151.24,151.12,5.73982347]
[1751811845171,8.81127274,151.24,151.11,46.88]
[1751811846272,4.58885854,151.24,151.11,46.88]
[1751811846474,4.58885854,151.24,151.09,5.7398996]
[1751811846773,6.6147,151.15,151.11,6.616]
[1751811847067,6.6148,151.14,151.1,62.0]
[1751811847275,6.6148,151.14,151.09,5.7398996]
[1751811847472,4.5646,151.17,151.09,5.7398996]
[1751811848371,6.6146,151.15,151.11,6.6161]
[1751811848763,6.6148,151.14,151.11,6.6161]
[1751811849972,6.6153,151.13,151.09,5.7398996]
[1751811850170,4.5646,151.17,151.09,12.3565996]
[1751811850377,2.2999,151.16,151.09,12.3565996]
[1751811850576,6.6148,151.14,151.1,6.6164]
[1751811850782,2.2999,151.16,151.1,6.6164]
[1751811851176,6.6152,151.14,151.11,6.6161]
[1751811851882,8.9141,151.16,151.09,5.7398996]
[1751811852077,2.2999,151.16,151.09,5.7398996]
[1751811852478,6.6146,151.15,151.11,6.6158]
[1751811853175,6.6146,151.15,151.11,68.6158]
[1751811853379,6.6146,151.15,151.12,6.6156]
[1751811854277,4.5646,151.17,151.12,4.58885854]
[1751811854475,46.9,151.22,151.12,4.58885854]
[1751811855475,46.9,151.22,151.15,4.58885854]
[1751811856273,46.9,151.22,151.15,66.58885854]
[1751811856477,46.9,151.22,151.15,4.58885854]
[1751811856677,6.6124,151.2,151.17,6.6132]
[1751811857082,46.9,151.22,151.16,6.6139]
[1751811858279,6.6125,151.2,151.17,6.6133]
[1751811866687,6.6119,151.21,151.18,6.6129]
[1751811866988,6.7647,151.23,151.15,4.58885854]
[1751811867788,6.6113,151.22,151.19,6.6124]
[1751811868885,6.6113,151.22,151.15,4.58885854]
[1751811868886,13.3756,151.23,151.2,6.6119]
[1751811869093,8.9519,151.23,151.2,6.6119]
[1751811870497,6.6113,151.22,151.2,6.6119]
[1751811871401,2.341,151.23,151.18,4.58885854]
[1751811872703,8.9522,151.23,151.2,6.6119]
[1751811873004,2.341,151.23,151.18,4.58885854]
[1751811873499,49.4677,151.26,151.18,4.58885854]
[1751811874504,6.6104,151.25,151.21,6.6115]
[1751811875306,8.8774,151.26,151.18,4.58885854]
[1751811875606,8.8774,151.26,151.21,4.58885854]
[1751811876408,2.2677,151.26,151.23,6.6106]
[1751811877509,2.3376,151.28,151.21,4.58885854]
[1751811877909,2.3575,151.31,151.24,4.58885854]
[1751811878111,4.26120394,151.3,151.24,4.58885854]
[1751811878409,6.6081,151.3,151.26,6.6092]
[1751811878908,2.3575,151.31,151.26,6.6092]
[1751811879306,6.6083,151.29,151.26,6.6092]
[1751811880113,2.3575,151.31,151.22,47.2]
[1751811880314,8.3064445,151.3,151.2,4.58885854]
[1751811880504,4.03665849,151.29,151.2,4.58885854]
[1751811880709,6.6099,151.26,151.22,6.6109]
[1751811880909,6.6099,151.26,151.2,4.58885854]
[1751811881714,6.6099,151.26,151.22,6.611]
[1751811884921,6.6101,151.25,151.21,6.6116]
[1751811885523,49.5144,151.28,151.18,51.76885854]
[1751811885719,6.29820801,151.27,151.18,51.76885854]
[1751811885919,6.6116,151.22,151.18,53.7929]
[1751811886217,6.6116,151.22,151.18,6.6129]
[1751811887014,6.6116,151.22,151.19,6.6125]
[1751811888924,2.1726,151.25,151.18,4.58885854]
[1751811889222,2.242,151.27,151.15,62.0]
[1751811889223,2.242,151.27,151.21,4.58885854]
[1751811889424,6.6097,151.26,151.23,6.6106]
[1751811889923,2.242,151.27,151.24,6.61]
[1751811890131,2.242,151.27,151.21,4.58885854]
[1751811890426,2.3489,151.29,151.26,6.6095]
[1751811890628,2.3489,151.29,151.24,4.58885854]
[1751811891628,2.3489,151.29,151.26,6.6093]
[1751811891629,8.9574,151.29,151.26,6.6093]
[1751811892329,2.3489,151.29,151.26,6.6093]
[1751811892629,49.0658,151.33,151.27,6.609]
[1751811892824,6.6078,151.3,151.27,6.609]
[1751811895129,6.6078,151.3,151.26,6.6094]
[1751811897131,6.6078,151.3,151.27,6.609]
[1751811898233,6.6075,151.31,151.28,6.6086]
[1751811898532,51.3978,151.33,151.24,51.48885854]
[1751811898934,6.6076,151.31,151.24,51.48885854]
[1751811899534,6.6076,151.31,151.28,6.6087]
[1751811900431,51.3978,151.33,151.27,4.58885854]
[1751811900432,6.6071,151.32,151.27,4.58885854]
[1751811900631,4.4978,151.33,151.27,4.58885854]
[1751811901536,6.6074,151.31,151.28,6.6084]
[1751811903734,6.6079,151.3,151.27,6.609]
[1751811903939,4.4978,151.33,151.26,4.58885854]
[1751811904629,6.6076,151.31,151.28,6.6085]
[1751811908840,6.6078,151.3,151.27,6.6089]
[1751811909940,4.4978,151.33,151.26,4.58885854]
[1751811910440,6.6076,151.31,151.28,6.6084]
[1751811911534,6.6071,151.32,151.28,6.6084]
[1751811913341,46.9,151.35,151.29,4.58885854]
[1751811914041,46.9,151.38,151.29,4.58885854]
[1751811914243,4.328261,151.37,151.29,4.58885854]
[1751811914443,6.6059,151.35,151.31,6.6072]
[1751811915638,6.6059,151.35,151.29,4.58885854]
[1751811916244,46.9,151.38,151.31,6.6072]
[1751811917444,46.9,151.38,151.24,121.08990457]
[1751811917647,4.0215199,151.37,151.27,4.58885854]
[1751811917945,46.9,151.38,151.27,4.58885854]
[1751811918245,8.3744535,151.37,151.27,4.58885854]
[1751811918445,6.6067,151.33,151.29,6.6079]
[1751811918948,6.6067,151.33,151.27,4.58885854]
[1751811919249,6.6067,151.33,151.3,6.6075]
[1751811919450,6.6062,151.34,151.3,6.6075]
[1751811919849,6.6055,151.36,151.3,4.58885854]
[1751811920047,46.9,151.38,151.3,4.58885854]
[1751811920247,8.37566704,151.37,151.3,4.58885854]
[1751811920449,46.9,151.38,151.31,6.6073]
[1751811920650,8.37530332,151.37,151.31,6.6073]
[1751811920850,46.9,151.38,151.31,6.6073]
[1751811921054,6.6059,151.35,151.31,6.6073]
[1751811922549,6.6053,151.36,151.3,4.58885854]
[1751811924544,6.6053,151.36,151.32,6.6065]
[1751811925343,6.6049,151.37,151.3,4.58885854]
[1751811925547,46.9,151.38,151.3,4.58885854]
[1751811925746,4.5152,151.39,151.3,4.58885854]
[1751811925943,6.6053,151.36,151.33,6.6062]
[1751811926655,6.6049,151.37,151.33,6.6062]
[1751811930057,51.3552,151.39,151.33,4.58885854]
[1751811931556,6.6043,151.38,151.35,6.6053]
[1751811933049,11.1192,151.39,151.36,6.6051]
[1751811934561,6.6043,151.38,151.35,6.6054]
[1751811939556,6.6032,151.41,151.36,4.58885854]
[1751811939864,2.3755,151.42,151.36,4.58885854]
[1751811940161,6.6037,151.4,151.37,6.6047]
[1751811943361,6.6032,151.41,151.38,6.6043]
[1751811944663,4.4835,151.43,151.41,6.603]
[1751811944868,2.1775,151.43,151.38,4.58885854]
[1751811945675,8.7796,151.43,151.4,6.6032]
[1751811946670,2.1775,151.43,151.38,4.58885854]
[1751811946974,2.1775,151.43,151.35,4.58885854]
[1751811947278,6.6032,151.41,151.37,6.6044]
[1751811947672,6.6032,151.41,151.38,6.6043]
[1751811948572,2.1775,151.43,151.35,4.58885854]
[1751811948774,2.1775,151.43,151.38,4.58885854]
[1751811949573,8.7799,151.43,151.39,6.6036]
[1751811950074,2.1775,151.43,151.41,6.6028]
[1751811950268,2.1775,151.43,151.38,4.58885854]
[1751811950472,2.1775,151.43,151.41,4.58885854]
[1751811950672,2.1775,151.43,151.41,11.19155854]
[1751811958680,2.3778,151.46,151.42,6.6024]
[1751811958874,2.3778,151.46,151.41,4.58885854]
[1751811959476,6.6016,151.45,151.41,11.19155854]
[1751811962282,2.3778,151.46,151.44,4.58885854]
[1751811962784,2.3778,151.46,151.44,11.19035854]
[1751811963182,2.3778,151.46,151.44,4.58885854]
[1751811963782,2.3778,151.46,151.44,11.19045854]
[1751811964782,2.3778,151.46,151.44,4.58885854]
[1751811966386,8.9018,151.48,151.44,4.58885854]
[1751811966589,4.4768,151.48,151.44,4.58885854]
[1751811966976,6.6006,151.47,151.44,4.58885854]
[1751811969288,6.6006,151.47,151.44,11.19045854]
[1751811970286,4.4768,151.48,151.41,4.58885854]
[1751811970789,6.6015,151.45,151.41,11.19155854]
[1751811970988,6.6015,151.45,151.41,4.58885854]
[1751811971187,46.74,151.47,151.39,46.74]
[1751811971489,6.6028,151.42,151.39,6.6036]
[1751811973393,6.6031,151.41,151.38,6.6041]
[1751811973586,2.2438,151.46,151.35,51.32885854]
[1751811973986,6.6022,151.43,151.35,51.32885854]
[1751811974287,6.6022,151.43,151.38,4.58885854]
[1751811974486,6.6018,151.44,151.38,4.58885854]
[1751811974884,2.2438,151.46,151.38,4.58885854]
[1751811975085,6.602,151.44,151.4,6.6032]
[1751811975786,2.2438,151.46,151.4,6.6032]
[1751811976692,2.2438,151.46,151.38,4.58885854]
[1751811977893,6.6021,151.44,151.4,6.6031]
[1751811978097,2.2438,151.46,151.4,6.6031]
[1751811978492,6.602,151.44,151.4,6.6031]
[1751811978895,6.6022,151.43,151.4,6.6031]
[1751811986493,6.6019,151.44,151.4,6.6031]
[1751811987498,6.6022,151.43,151.4,6.6031]
[1751811988801,6.6022,151.43,151.39,6.6037]
[1751811988994,6.6022,151.43,151.38,4.58885854]
[1751811989394,6.6022,151.43,151.39,6.6036]
[1751811989803,6.6031,151.41,151.37,12.1521669]
[1751811990100,6.6031,151.41,151.37,23.34562544]
[1751811990603,6.6031,151.41,151.38,6.6043]
[1751811992905,6.6027,151.42,151.38,6.6043]
[1751811994204,6.603,151.41,151.38,6.6043]
[1751811994997,6.603,151.41,151.37,11.19345854]